bitfinex/quotes_SOLUSD_20241113
["timestamp","ask_amount","ask_price","bid_price","bid_amount"]
[1731459986041,52.28578983,211.36,211.3,15.9991]
[1731459986248,0.4552312,211.4,211.3,39.77670583]
[1731459986249,23.77760583,211.37,211.3,39.77670583]
[1731459986417,23.77760583,211.37,211.3,15.9991]
[1731459986740,23.77760583,211.35,211.28,23.77760583]
[1731459987320,23.776884,211.34,211.28,23.77760583]
[1731459987520,23.776884,211.35,211.28,23.77760583]
[1731459987816,23.77760583,211.36,211.29,23.77760583]
[1731459988021,20.0,211.39,211.33,23.77760583]
[1731459988217,28.96323703,211.4,211.33,23.77760583]
[1731459988649,28.96323703,211.4,211.32,23.77760583]
[1731459988822,23.77760583,211.37,211.3,23.77760583]
[1731459989028,23.77760583,211.37,211.29,23.77760583]
[1731459989325,23.77760583,211.37,211.3,23.77760583]
[1731459989542,23.776884,211.36,211.3,23.77760583]
[1731459990540,28.508284,211.36,211.28,11.8326]
[1731459990735,28.508284,211.36,211.29,23.77760583]
[1731459991040,52.28588983,211.36,211.29,23.77760583]
[1731459991623,52.28588983,211.36,211.28,23.77760583]
[1731459991624,43.77760583,211.35,211.28,23.77760583]
[1731459991942,23.77760583,211.29,211.24,16.5153]
[1731459992153,28.508284,211.36,211.18,15.4786]
[1731459992154,23.77760583,211.25,211.18,15.4786]
[1731459992350,23.77760583,211.23,211.18,15.4786]
[1731459992844,23.77760583,211.25,211.18,39.25620583]
[1731459993239,47.55448983,211.26,211.19,23.77760583]
[1731459993544,23.77760583,211.24,211.18,15.4786]
[1731459993743,47.55448983,211.23,211.18,15.4786]
[1731459994261,23.776884,211.29,211.22,23.77760583]
[1731459994436,23.776884,211.29,211.23,23.77760583]
[1731459994741,23.77760583,211.33,211.27,23.77760583]
[1731459994950,4.7305,211.39,211.23,20.12549]
[1731459995646,0.1,211.37,211.22,6.3256]
[1731459995942,23.77760583,211.28,211.22,6.3256]
[1731459996143,23.77760583,211.27,211.2,23.77760583]
[1731459996537,23.776884,211.26,211.2,23.77760583]
[1731459996943,23.776884,211.26,211.2,28.51230583]
[1731459997142,23.776884,211.27,211.2,28.51230583]
[1731459997525,47.55448983,211.27,211.19,23.77760583]
[1731459997724,23.77760583,211.26,211.19,23.77760583]
[1731459998138,23.77760583,211.26,211.15,6.6391]
[1731459998139,47.55448983,211.23,211.15,23.77760583]
[1731459998341,23.776884,211.22,211.15,23.77760583]
[1731459998646,4.7335,211.26,211.13,11.8406]
[1731459998854,23.776884,211.25,211.2,23.77760583]
[1731459999231,43.776884,211.27,211.21,23.77760583]
[1731459999642,67.55448983,211.27,211.2,23.77760583]
[1731460000029,47.55448983,211.21,211.13,35.61820583]
[1731460000339,23.77760583,211.19,211.11,23.77760583]
[1731460000654,23.776884,211.22,211.16,23.77760583]
[1731460001032,23.776884,211.23,211.18,23.77760583]
[1731460001256,23.776884,211.24,211.18,23.77760583]
[1731460001573,24.7333,211.27,211.2,23.77760583]
[1731460001852,23.776884,211.26,211.19,23.77760583]
[1731460002054,23.776884,211.21,211.15,23.77760583]
[1731460002257,23.77760583,211.2,211.14,11.8401]
[1731460002460,47.55448983,211.21,211.14,11.8401]
[1731460002654,47.55448983,211.21,211.14,16.5762]
[1731460002956,47.55448983,211.21,211.14,40.35380583]
[1731460003156,23.776884,211.18,211.1,38.88390583]
[1731460003357,23.776884,211.16,211.1,38.88390583]
[1731460003560,23.776884,211.16,211.1,15.1063]
[1731460003735,23.776884,211.16,211.1,38.88390583]
[1731460003938,23.776884,211.16,211.1,43.62090583]
[1731460004459,28.512684,211.16,211.08,23.77760583]
[1731460005437,28.512684,211.16,211.08,28.51490583]
[1731460005638,28.512684,211.16,211.08,40.35870583]
[1731460005843,28.512684,211.16,211.1,23.77760583]
[1731460006041,28.512684,211.16,211.08,16.5811]
[1731460006042,23.776884,211.18,211.13,23.77760583]
[1731460006249,23.776884,211.2,211.13,23.77760583]
[1731460007160,23.77760583,211.16,211.08,23.77760583]
[1731460007489,4.7361,211.14,211.08,23.77760583]
[1731460007766,23.77760583,211.2,211.08,23.77760583]
[1731460007767,23.77760583,211.18,211.11,0.12549]
[1731460007942,20.0,211.19,211.12,23.77760583]
[1731460008142,20.0,211.19,211.08,16.5812]
[1731460008143,28.51210583,211.22,211.14,23.77760583]
[1731460008338,28.51150583,211.24,211.17,23.77760583]
[1731460008556,23.77760583,211.19,211.12,23.77760583]
[1731460009569,23.77760583,211.2,211.13,23.77760583]
[1731460009777,23.776884,211.2,211.13,23.77760583]
[1731460010569,4.7344,211.22,211.15,23.77760583]
[1731460010767,4.2344,211.22,211.15,23.77760583]
[1731460011079,4.2344,211.22,211.17,23.77760583]
[1731460011277,4.7341,211.24,211.17,23.77760583]
[1731460011881,23.776884,211.23,211.17,23.77760583]
[1731460012777,28.511184,211.23,211.17,23.77760583]
[1731460013081,52.28878983,211.23,211.16,28.51330583]
[1731460013774,28.511184,211.23,211.16,28.51330583]
[1731460014168,23.77760583,211.2,211.14,11.8404]
[1731460014375,47.55448983,211.19,211.12,23.77760583]
[1731460014574,23.77760583,211.16,211.09,35.62030583]
[1731460014771,47.55448983,211.15,211.09,11.8427]
[1731460015066,23.776884,211.13,211.06,23.77760583]
[1731460015261,23.77760583,211.17,211.09,23.77760583]
[1731460015567,23.776884,211.16,211.09,23.77760583]
[1731460015762,47.55448983,211.16,211.09,23.77760583]
[1731460016174,47.55448983,211.16,211.06,16.5827]
[1731460016175,23.776884,211.13,211.06,11.8449]
[1731460016359,23.776884,211.08,211.01,11.8474]
[1731460016564,23.776884,211.06,210.89,11.8545]
[1731460016878,23.77760583,210.96,210.89,35.63210583]
[1731460017262,6.451,211.03,210.89,35.63210583]
[1731460017263,23.77760583,211.0,210.92,23.77760583]
[1731460017467,23.776884,210.99,210.93,23.77760583]
[1731460017883,23.776884,210.99,210.92,23.77760583]
[1731460018065,20.0,211.06,210.98,23.77760583]
[1731460018270,23.776884,211.06,210.99,35.62650583]
[1731460018483,47.55448983,211.04,210.97,23.77760583]
[1731460018691,23.776884,211.03,210.97,23.77760583]
[1731460018887,23.77760583,211.01,210.95,15.0725]
[1731460019186,47.55448983,211.0,210.92,23.77760583]
[1731460019493,23.77760583,211.01,210.93,23.77760583]
[1731460019793,23.77760583,211.06,210.99,23.77760583]
[1731460019964,23.776884,211.06,211.0,23.77760583]
[1731460020161,23.77760583,211.09,211.01,28.51670583]
[1731460020386,4.737,211.11,211.01,28.51670583]
[1731460020387,28.51460583,211.11,211.04,23.77760583]
[1731460020579,23.77760583,211.11,211.04,23.77760583]
[1731460020784,23.77760583,211.09,211.01,40.36440583]
[1731460021172,23.77760583,211.1,211.02,23.77760583]
[1731460021774,23.77760583,211.15,211.08,23.77760583]
[1731460021974,4.7339,211.24,211.13,23.77760583]
[1731460022167,4.7339,211.24,211.05,0.07918583]
[1731460022378,4.7339,211.24,211.07,20.12549]
[1731460022575,0.12549,211.23,211.07,20.0]
[1731460022789,23.77760583,211.17,211.09,23.77760583]
[1731460022966,23.77760583,211.18,211.11,23.77760583]
[1731460023170,23.77760583,211.19,211.11,23.77760583]
[1731460023381,23.77760583,211.17,211.09,23.77760583]
[1731460023692,23.77760583,211.18,211.1,23.77760583]
[1731460023874,23.77760583,211.18,211.1,28.51450583]
[1731460024078,23.77760583,211.21,211.12,23.77760583]
[1731460024277,23.77760583,211.19,211.12,23.77760583]
[1731460024593,23.77760583,211.19,211.11,23.90309583]
[1731460025172,23.77760583,211.19,211.12,4.7366]
[1731460025590,23.77760583,211.21,211.13,23.90309583]
[1731460025884,5.91533991,211.29,211.15,23.77760583]
[1731460025885,23.77760583,211.22,211.15,23.77760583]
[1731460027189,23.77760583,211.27,211.19,23.77760583]
[1731460028275,23.77760583,211.27,211.2,23.77760583]
[1731460028590,23.776884,211.26,211.2,23.77760583]
[1731460028815,28.51050583,211.29,211.22,23.77760583]
[1731460028982,4.7316,211.35,211.27,23.77760583]
[1731460029294,28.50920583,211.35,211.28,23.77760583]
[1731460029791,4.7311,211.37,211.29,23.77760583]
[1731460029974,23.77760583,211.38,211.31,23.77760583]
[1731460030175,23.77760583,211.37,211.3,23.77760583]
[1731460030376,23.77760583,211.35,211.28,23.77760583]
[1731460030678,23.77760583,211.36,211.29,23.77760583]
[1731460031986,23.77760583,211.38,211.31,23.77760583]
[1731460032187,28.50830583,211.39,211.31,23.77760583]
[1731460032380,23.77760583,211.38,211.31,23.77760583]
[1731460032993,28.50830583,211.39,211.32,23.77760583]
[1731460033287,23.776884,211.32,211.24,11.8346]
[1731460033595,20.0,211.37,211.25,0.12549]
[1731460033779,20.0,211.35,211.25,0.12549]
[1731460034205,20.0,211.33,211.21,16.4381]
[1731460034491,20.0,211.33,211.22,20.0]
[1731460034797,23.77760583,211.35,211.28,23.77760583]
[1731460035171,23.77760583,211.34,211.29,4.7328]
[1731460035378,23.77760583,211.3,211.25,4.7335]
[1731460035603,23.77760583,211.29,211.23,16.5691]
[1731460035899,23.77760583,211.3,211.23,40.34670583]
[1731460036195,23.77760583,211.31,211.24,23.77760583]
[1731460036397,23.77760583,211.3,211.23,40.34670583]
[1731460036894,23.77760583,211.3,211.23,16.5691]
[1731460037604,23.77760583,211.28,211.23,16.5691]
[1731460037780,23.77760583,211.29,211.23,16.5691]
[1731460038189,23.77760583,211.28,211.23,16.5691]
[1731460038385,23.77760583,211.27,211.23,11.8351]
[1731460038596,23.77760583,211.26,211.21,16.4381]
[1731460038798,23.77760583,211.28,211.21,33.0092]
[1731460038978,23.77760583,211.3,211.24,4.7339]
[1731460039599,23.77760583,211.3,211.24,16.5687]
[1731460039793,23.77760583,211.29,211.24,16.5687]
[1731460040301,23.77760583,211.31,211.24,40.34630583]
[1731460040486,23.77760583,211.32,211.25,23.77760583]
[1731460040789,23.77760583,211.33,211.26,23.77760583]
[1731460040991,23.77760583,211.33,211.27,4.7332]
[1731460041195,23.77760583,211.33,211.27,16.5663]
[1731460041797,23.77760583,211.31,211.27,11.8331]
[1731460042002,23.77760583,211.3,211.27,11.8331]
[1731460042495,23.77760583,211.28,211.22,11.8359]
[1731460042696,0.1,211.33,211.22,11.8359]
[1731460042697,23.77760583,211.24,211.22,11.8359]
[1731460043287,23.77760583,211.26,211.22,11.8359]
[1731460044189,23.77760583,211.28,211.22,16.5703]
[1731460044396,23.77760583,211.31,211.23,23.90309583]
[1731460045403,23.77760583,211.3,211.24,16.5687]
[1731460045593,23.77760583,211.27,211.21,21.1726]
[1731460045798,23.77760583,211.28,211.21,56.78670583]
[1731460046300,23.77760583,211.31,211.24,23.77760583]
[1731460046602,20.0,211.3,211.24,23.77760583]
[1731460046784,23.776884,211.29,211.23,28.51160583]
[1731460046984,23.776884,211.29,211.23,40.34700583]
[1731460047493,23.77760583,211.28,211.23,16.5694]
[1731460047696,23.77760583,211.28,211.23,11.8354]
[1731460047889,23.77760583,211.3,211.23,23.77760583]
[1731460048099,23.77760583,211.31,211.23,23.77760583]
[1731460048592,23.77760583,211.3,211.23,23.77760583]
[1731460048905,23.776884,211.32,211.26,23.77760583]
[1731460049607,23.77760583,211.37,211.3,23.77760583]
[1731460050214,23.77760583,211.35,211.29,23.77760583]
[1731460050403,23.77760583,211.35,211.28,23.77760583]
[1731460050604,23.77760583,211.35,211.29,16.5648]
[1731460050919,23.77760583,211.36,211.29,40.34240583]
[1731460051090,23.77760583,211.35,211.29,16.5648]
[1731460051285,23.77760583,211.36,211.29,40.34240583]
[1731460051508,23.77760583,211.35,211.29,16.5648]
[1731460051896,23.77760583,211.32,211.26,4.7332]
[1731460052414,23.77760583,211.27,211.21,33.0087]
[1731460052605,23.776884,211.3,211.21,33.0087]
[1731460053111,23.77760583,211.27,211.21,33.0087]
[1731460053488,23.77760583,211.32,211.25,23.77760583]
[1731460053691,23.77760583,211.36,211.29,23.77760583]
[1731460053904,5.1856312,211.4,211.28,0.12549]
[1731460054109,5.1856312,211.4,211.3,0.12549]
[1731460054814,0.4552312,211.4,211.3,0.12549]
[1731460055110,23.77760583,211.38,211.31,23.77760583]
[1731460055714,23.77760583,211.36,211.29,30.08890583]
[1731460056019,23.77760583,211.36,211.3,4.7326]
[1731460056396,47.55448983,211.37,211.3,28.51020583]
[1731460056897,47.55448983,211.37,211.3,40.34170583]
[1731460058325,23.77760583,211.32,211.25,23.77760583]
[1731460058505,23.77760583,211.32,211.27,4.733]
[1731460058704,23.776884,211.35,211.29,23.77760583]
[1731460058907,47.55448983,211.35,211.28,23.77760583]
[1731460059103,23.776884,211.33,211.28,23.77760583]
[1731460059308,47.55448983,211.35,211.28,23.77760583]
[1731460059512,47.55448983,211.35,211.29,4.7328]
[1731460059696,23.77760583,211.36,211.3,0.12549]
[1731460060017,23.77760583,211.38,211.31,23.77760583]
[1731460060214,23.77760583,211.36,211.29,40.34240583]
[1731460060920,23.77760583,211.34,211.29,16.5648]
[1731460061123,47.55448983,211.31,211.25,11.8342]
[1731460061417,23.776884,211.25,211.21,16.4381]
[1731460061603,23.77760583,211.22,211.2,11.8367]
[1731460061912,23.776884,211.27,211.2,16.5715]
[1731460062297,23.776884,211.29,211.2,16.5715]
[1731460062926,23.77760583,211.25,211.2,16.5715]
[1731460063923,47.55448983,211.24,211.2,16.5715]
[1731460064726,23.776884,211.24,211.2,16.5715]
[1731460065040,23.776884,211.24,211.2,15.0715]
[1731460065716,23.77760583,211.26,211.2,10.3367]
[1731460065919,23.77760583,211.26,211.2,34.11430583]
[1731460065920,23.776884,211.26,211.2,34.11430583]
[1731460066123,23.77760583,211.31,211.24,23.90309583]
[1731460066295,23.77760583,211.32,211.25,23.77760583]
[1731460066503,0.1,211.34,211.2,10.3367]
[1731460066707,23.77760583,211.26,211.2,10.3367]
[1731460066999,23.77760583,211.28,211.21,23.77760583]
[1731460067410,23.77760583,211.29,211.22,0.12549]
[1731460067617,23.77760583,211.29,211.23,16.5695]
[1731460068125,23.77760583,211.32,211.25,23.77760583]
[1731460068298,4.7316,211.35,211.23,16.5695]
[1731460068299,23.77760583,211.3,211.23,40.34710583]
[1731460068495,23.77760583,211.27,211.23,16.5695]
[1731460068914,23.77760583,211.26,211.23,11.8354]
[1731460069113,23.77760583,211.24,211.2,4.7346]
[1731460069504,20.0,211.33,211.23,28.51170583]
[1731460069709,23.77760583,211.33,211.26,23.77760583]
[1731460069915,6.4476,211.37,211.24,0.12549]
[1731460070125,23.77760583,211.32,211.25,23.77760583]
[1731460070325,23.77760583,211.33,211.26,23.77760583]
[1731460070716,23.77760583,211.32,211.26,4.7335]
[1731460071020,47.55448983,211.32,211.26,4.7335]
[1731460071216,47.55448983,211.31,211.26,4.7335]
[1731460071415,23.776884,211.3,211.23,23.77760583]
[1731460071619,23.776884,211.28,211.23,4.7339]
[1731460071817,4.7318,211.34,211.23,28.51150583]
[1731460071818,23.77760583,211.31,211.23,28.51150583]
[1731460072016,23.77760583,211.31,211.24,0.12549]
[1731460072327,23.77760583,211.26,211.22,11.8357]
[1731460072503,47.55448983,211.25,211.22,11.8357]
[1731460072705,47.55448983,211.25,211.14,6.1352]
[1731460072706,20.0,211.24,211.14,6.1352]
[1731460072922,23.77760583,211.18,211.14,6.1352]
[1731460073226,23.77760583,211.18,211.13,11.8408]
[1731460073227,23.77760583,211.2,211.15,4.7359]
[1731460073425,23.776884,211.19,211.15,4.7359]
[1731460073601,47.55448983,211.19,211.15,4.7359]
[1731460074104,23.776884,211.19,211.16,19.9748]
[1731460075310,23.77760583,211.17,211.13,11.8408]
[1731460075605,23.77760583,211.18,211.13,16.5772]
[1731460075810,23.776884,211.17,211.13,16.5772]
[1731460076310,47.55448983,211.17,211.13,16.5772]
[1731460076620,23.776884,211.17,211.13,16.5772]
[1731460076823,47.55448983,211.18,211.13,16.5772]
[1731460077008,23.776884,211.18,211.13,16.5772]
[1731460077213,47.55448983,211.18,211.13,16.5772]
[1731460077626,23.776884,211.18,211.13,16.5772]
[1731460079434,23.77760583,211.26,211.17,23.90309583]
[1731460079611,23.77760583,211.28,211.21,23.77760583]
[1731460080013,23.77760583,211.28,211.2,23.77760583]
[1731460080215,4.7328,211.29,211.14,20.12549]
[1731460080216,23.77760583,211.27,211.19,23.77760583]
[1731460080428,28.51020583,211.3,211.22,28.51200583]
[1731460080733,23.77760583,211.26,211.19,23.77760583]
[1731460080937,23.77760583,211.29,211.22,23.77760583]
[1731460081238,23.77760583,211.3,211.22,23.77760583]
[1731460081529,23.77760583,211.31,211.24,23.77760583]
[1731460082111,4.7319,211.33,211.26,23.77760583]
[1731460082112,23.77760583,211.33,211.26,23.77760583]
[1731460082544,23.77760583,211.33,211.27,16.5663]
[1731460082740,23.77760583,211.29,211.23,16.5693]
[1731460082915,23.77760583,211.26,211.23,11.8353]
[1731460083113,23.77760583,211.25,211.19,4.7349]
[1731460083334,47.55448983,211.24,211.18,11.8377]
[1731460083635,23.77760583,211.26,211.18,40.35050583]
[1731460083811,23.776884,211.25,211.19,0.12549]
[1731460084134,23.77760583,211.2,211.18,11.8377]
[1731460084537,23.77760583,211.19,211.16,4.7356]
[1731460084839,23.77760583,211.19,211.14,16.5764]
[1731460085026,23.77760583,211.15,211.09,11.8428]
[1731460085218,23.77760583,211.11,211.07,16.5704]
[1731460085616,23.77760583,211.12,211.07,21.308]
[1731460085834,23.776884,211.12,211.07,21.308]
[1731460086039,23.776884,211.12,211.07,16.5704]
[1731460086040,23.77760583,211.11,211.07,16.5704]
[1731460086232,23.77760583,211.09,211.03,4.7386]
[1731460086416,20.0,211.11,211.03,4.7386]
[1731460086417,23.77760583,211.13,211.06,0.12549]
[1731460086730,23.77760583,211.13,211.04,0.12549]
[1731460086731,23.77760583,211.16,211.09,23.77760583]
[1731460086942,23.776884,211.15,211.11,23.77760583]
[1731460087139,23.77760583,211.13,211.04,0.12549]
[1731460087342,23.776884,211.09,211.03,16.5852]
[1731460087842,47.55448983,211.06,211.02,15.266]
[1731460088043,23.77760583,211.06,211.02,15.266]
[1731460088521,23.776884,211.07,211.02,15.266]
[1731460088718,23.77760583,211.14,211.07,0.12549]
[1731460088916,4.7323,211.31,211.14,15.9657]
[1731460089144,4.7323,211.31,211.15,20.12549]
[1731460089517,4.8323,211.31,211.17,23.77760583]
[1731460089723,23.77760583,211.26,211.18,23.77760583]
[1731460090115,23.77760583,211.26,211.19,23.77760583]
[1731460090537,23.77760583,211.26,211.18,23.77760583]
[1731460090733,23.77760583,211.22,211.17,11.8384]
[1731460090951,23.77760583,211.2,211.14,15.9657]
[1731460091129,23.77760583,211.2,211.14,20.7018]
[1731460091437,23.77760583,211.18,211.14,15.9657]
[1731460091739,23.776884,211.19,211.14,15.9657]
[1731460092242,4.7335,211.26,211.14,56.31970583]
[1731460092418,23.776884,211.23,211.17,23.77760583]
[1731460092927,23.77760583,211.26,211.19,23.77760583]
[1731460093126,23.77760583,211.26,211.18,23.77760583]
[1731460093325,23.77760583,211.26,211.19,23.77760583]
[1731460093644,23.77760583,211.25,211.18,0.12549]
[1731460093846,23.77760583,211.25,211.18,23.77760583]
[1731460094243,43.776884,211.26,211.19,28.51260583]
[1731460094541,67.55448983,211.26,211.19,28.51260583]
[1731460094925,43.776884,211.26,211.19,40.35020583]
[1731460095126,67.55448983,211.26,211.19,40.35020583]
[1731460095443,23.776884,211.26,211.2,23.77760583]
[1731460095946,27.6938,211.35,211.2,23.77760583]
[1731460095947,23.77760583,211.33,211.25,23.77760583]
[1731460096121,23.77760583,211.35,211.28,23.77760583]
[1731460096322,6.4579,211.37,211.26,16.5672]
[1731460096823,23.77760583,211.32,211.26,16.5672]
[1731460097223,23.77760583,211.34,211.26,40.34480583]
[1731460097424,23.77760583,211.34,211.27,40.46929583]
[1731460097746,23.776884,211.34,211.28,23.77760583]
[1731460097916,47.55448983,211.35,211.28,23.77760583]
[1731460098119,23.77760583,211.32,211.27,16.5662]
[1731460098339,23.77760583,211.31,211.27,11.8331]
[1731460098652,23.77760583,211.3,211.25,15.0841]
[1731460098946,23.77760583,211.34,211.27,23.77760583]
[1731460099120,23.77760583,211.35,211.28,23.77760583]
[1731460099317,47.55448983,211.35,211.27,23.77760583]
[1731460099520,23.77760583,211.35,211.28,28.51060583]
[1731460099740,23.776884,211.34,211.28,40.34320583]
[1731460100337,23.77760583,211.33,211.28,16.5656]
[1731460100651,23.77760583,211.29,211.25,15.0841]
[1731460100938,23.77760583,211.26,211.19,15.7299]
[1731460101139,23.87760583,211.31,211.19,15.7299]
[1731460101350,23.77760583,211.2,211.14,15.7299]
[1731460101522,23.77760583,211.18,211.14,20.466]
[1731460101724,47.55448983,211.18,211.14,15.7299]
[1731460101932,23.77760583,211.18,211.14,15.7299]
[1731460102246,23.776884,211.19,211.14,20.4659]
[1731460102454,47.55448983,211.19,211.14,20.4659]
[1731460102628,23.776884,211.14,211.13,0.12549]
[1731460102823,47.55448983,211.14,211.13,0.12549]
[1731460103525,72.29058983,211.14,211.13,0.12549]
[1731460105029,23.776884,211.14,211.13,0.12549]
[1731460105228,47.55448983,211.14,211.13,0.12549]
[1731460106328,43.776884,211.14,211.13,0.12549]
[1731460106531,23.776884,211.14,211.13,0.12549]
[1731460106721,47.55448983,211.14,211.13,0.12549]
[1731460107342,23.77760583,211.15,211.13,0.12549]
[1731460107654,23.77760583,211.17,211.13,0.12549]
[1731460107852,23.77760583,211.18,211.13,0.12549]
[1731460108051,23.77760583,211.17,211.13,0.12549]
[1731460108228,23.77760583,211.18,211.13,0.12549]
[1731460108545,23.77760583,211.2,211.14,23.77760583]
[1731460108759,23.77760583,211.19,211.13,16.70279]
[1731460108933,23.77760583,211.22,211.15,23.77760583]
[1731460109130,23.77760583,211.23,211.16,23.77760583]
[1731460109449,23.77760583,211.25,211.17,23.77760583]
[1731460109652,23.77760583,211.26,211.19,23.77760583]
[1731460109953,23.77760583,211.24,211.17,35.61610583]
[1731460110123,23.77760583,211.21,211.15,4.7359]
[1731460110329,4.7328,211.29,211.15,16.5758]
[1731460110740,23.77760583,211.25,211.18,23.77760583]
[1731460110954,23.77760583,211.23,211.16,23.77760583]
[1731460111249,23.77760583,211.23,211.17,20.0]
[1731460111426,23.77760583,211.23,211.16,23.77760583]
[1731460111627,23.77760583,211.23,211.17,4.7355]
[1731460111834,23.77760583,211.23,211.17,16.5743]
[1731460112248,23.77760583,211.21,211.14,40.30030583]
[1731460112557,0.2,211.3,211.14,40.30030583]
[1731460112558,24.7329,211.29,211.15,0.12549]
[1731460112737,4.7329,211.29,211.15,0.12549]
[1731460113635,23.77760583,211.24,211.18,0.12549]
[1731460113832,23.776884,211.24,211.18,0.12549]
[1731460114045,47.55448983,211.24,211.18,0.12549]
[1731460114249,23.77760583,211.19,211.14,21.2588]
[1731460114446,23.77760583,211.22,211.15,23.77760583]
[1731460114830,23.77760583,211.23,211.16,23.90309583]
[1731460115148,40.44080583,211.31,211.14,21.2588]
[1731460115149,23.77760583,211.27,211.2,23.77760583]
[1731460115351,4.7305,211.39,211.19,0.07918583]
[1731460115647,23.77760583,211.36,211.3,4.7326]
[1731460115842,4.7309,211.38,211.27,16.2746]
[1731460116033,4.8309,211.38,211.27,16.2746]
[1731460116234,0.22549,211.35,211.21,21.0091]
[1731460116440,6.41439547,211.37,211.22,0.12549]
[1731460116843,6.41439547,211.37,211.22,20.12549]
[1731460117137,23.77760583,211.3,211.24,0.12549]
[1731460117339,23.77760583,211.3,211.25,4.65284758]
[1731460117532,23.77760583,211.3,211.26,4.65284758]
[1731460117734,23.77760583,211.28,211.25,4.65284758]
[1731460118051,23.77760583,211.26,211.25,4.65284758]
[1731460118253,23.77760583,211.26,211.22,4.65284758]
[1731460118459,23.77760583,211.29,211.23,0.12549]
[1731460118629,23.77760583,211.28,211.23,0.12549]
[1731460118831,23.77760583,211.26,211.22,21.22476007]
[1731460119146,23.77760583,211.25,211.22,21.22496007]
[1731460119338,47.55448983,211.27,211.22,21.22496007]
[1731460119529,23.77760583,211.28,211.23,0.12549]
[1731460119734,23.77760583,211.28,211.23,4.85949]
[1731460120149,23.77760583,211.33,211.26,23.90309583]
[1731460120340,0.1,211.37,211.23,16.5694]
[1731460120656,0.1,211.39,211.24,0.12549]
[1731460120837,16.5578,211.38,211.24,0.12549]
[1731460121544,23.77760583,211.3,211.24,0.12549]
[1731460122053,23.77760583,211.32,211.26,0.12549]
[1731460122243,23.77760583,211.35,211.28,23.90309583]
[1731460122444,23.77760583,211.34,211.28,0.12549]
[1731460122642,23.77760583,211.34,211.28,20.12549]
[1731460122849,23.77760583,211.33,211.28,20.0]
[1731460123041,23.77760583,211.29,211.22,4.65456007]
[1731460123240,23.77760583,211.23,211.22,4.65456007]
[1731460123937,47.55448983,211.23,211.22,4.65456007]
[1731460124156,52.28858983,211.23,211.22,4.65456007]
[1731460124452,72.28858983,211.23,211.22,4.65456007]
[1731460125757,52.28858983,211.23,211.22,4.65456007]
[1731460125961,72.28858983,211.23,211.22,4.65456007]
[1731460127854,47.55448983,211.23,211.22,4.65456007]
[1731460128049,23.77760583,211.23,211.22,4.65456007]
[1731460128444,23.776884,211.22,211.13,11.96649]
[1731460128765,23.77760583,211.2,211.14,36.5764]
[1731460128969,23.77760583,211.21,211.14,60.35400583]
[1731460129260,47.55448983,211.22,211.14,40.35400583]
[1731460129440,23.77760583,211.21,211.14,40.35400583]
[1731460129838,23.77760583,211.22,211.16,0.12549]
[1731460130036,23.77760583,211.22,211.15,23.77760583]
[1731460130346,23.77760583,211.25,211.18,23.77760583]
[1731460130542,23.77760583,211.24,211.16,23.77760583]
[1731460130762,23.77760583,211.24,211.17,23.77760583]
[1731460131458,23.77760583,211.23,211.17,20.0]
[1731460131667,23.77760583,211.24,211.18,4.7352]
[1731460131843,23.77760583,211.25,211.18,28.51280583]
[1731460132165,23.77760583,211.23,211.18,4.7352]
[1731460132850,23.77760583,211.21,211.17,11.8382]
[1731460133163,23.77760583,211.18,211.14,4.7361]
[1731460133368,23.77760583,211.17,211.13,0.12549]
[1731460133655,23.776884,211.24,211.14,16.5765]
[1731460133866,23.776884,211.24,211.15,0.12549]
[1731460134648,4.7314,211.35,211.15,20.12549]
[1731460134963,23.77760583,211.28,211.22,4.7344]
[1731460135352,12.10522072,211.35,211.22,4.7344]
[1731460135353,23.77760583,211.33,211.26,23.77760583]
[1731460135550,23.77760583,211.34,211.27,23.77760583]
[1731460135764,23.77760583,211.3,211.23,23.90309583]
[1731460136061,23.77760583,211.31,211.24,23.77760583]
[1731460136456,23.77760583,211.31,211.25,16.568]
[1731460136646,23.77760583,211.33,211.26,23.77760583]
[1731460136851,23.776884,211.32,211.26,23.77760583]
[1731460137365,47.55448983,211.32,211.25,40.34560583]
[1731460137863,23.77760583,211.35,211.27,23.77760583]
[1731460138067,23.77760583,211.36,211.3,0.12549]
[1731460138371,23.77760583,211.35,211.29,0.12549]
[1731460138556,23.77760583,211.36,211.29,23.90309583]
[1731460138957,0.4552312,211.4,211.26,20.0]
[1731460138958,23.77760583,211.37,211.3,23.77760583]
[1731460139152,0.4552312,211.4,211.26,20.0]
[1731460139153,23.77760583,211.36,211.29,23.77760583]